bitfinex/quotes_SOLUSD_20220208
["timestamp","ask_amount","ask_price","bid_price","bid_amount"]
[1644334646819,21.43527543,111.5,111.39,45.04031019]
[1644334647019,1.2156478,111.48,111.39,45.04031019]
[1644334647620,1.2156478,111.48,111.39,44.79031019]
[1644334647827,1.2156478,111.49,111.39,45.04031019]
[1644334648027,4.96773853,111.48,111.39,44.79031019]
[1644334648427,1.2156478,111.47,111.36,1.86365381]
[1644334648626,1.2156478,111.46,111.34,58.24675381]
[1644334649021,1.2156478,111.45,111.34,58.24675381]
[1644334649423,1.2156478,111.44,111.34,58.24675381]
[1644334649623,18.42425447,111.44,111.35,46.86404057]
[1644334649825,1.2156478,111.44,111.35,46.86404057]
[1644334650022,1.2156478,111.43,111.35,46.86404057]
[1644334650424,1.2156478,111.44,111.35,46.86404057]
[1644334651124,1.2156478,111.44,111.35,48.72769438]
[1644334651324,1.2156478,111.45,111.35,48.97769438]
[1644334651523,1.2156478,111.46,111.35,89.62645781]
[1644334652122,5.84891695,111.46,111.35,89.62645781]
[1644334652325,5.84891695,111.46,111.35,89.37645781]
[1644334652623,1.2156478,111.45,111.35,89.37645781]
[1644334652826,1.2156478,111.44,111.35,72.97289438]
[1644334653228,1.2156478,111.45,111.35,89.37645781]
[1644334653426,1.2156478,111.45,111.35,143.09645781]
[1644334653630,1.2156478,111.46,111.35,143.09645781]
[1644334653824,1.2156478,111.46,111.35,147.58345781]
[1644334654024,1.2156478,111.45,111.35,147.83345781]
[1644334654225,1.2156478,111.46,111.35,143.34645781]
[1644334654724,1.2156478,111.46,111.35,151.52465458]
[1644334654926,1.2156478,111.47,111.35,156.01265458]
[1644334655125,1.2156478,111.47,111.35,151.52465458]
[1644334655325,1.245773,111.47,111.35,151.52465458]
[1644334655629,1.38160847,111.44,111.35,63.64404057]
[1644334655829,1.38160847,111.44,111.35,57.64404057]
[1644334656126,1.2156478,111.42,111.35,46.86404057]
[1644334656625,1.2156478,111.43,111.35,46.86404057]
[1644334656825,1.2156478,111.42,111.35,46.86404057]
[1644334658230,1.2156478,111.42,111.35,47.11404057]
[1644334659728,1.2156478,111.42,111.35,46.86404057]
[1644334659929,7.2156478,111.42,111.35,46.86404057]
[1644334660128,7.2156478,111.42,111.35,47.11404057]
[1644334660530,7.2156478,111.42,111.36,1.85930081]
[1644334660730,1.2156478,111.42,111.36,2.10930081]
[1644334661135,1.2156478,111.43,111.37,1.85930081]
[1644334661332,1.2156478,111.44,111.37,2.10930081]
[1644334661632,1.2156478,111.44,111.38,42.16092556]
[1644334662132,1.2156478,111.44,111.38,40.30162475]
[1644334663034,1.2156478,111.43,111.38,40.30162475]
[1644334664134,1.2156478,111.42,111.38,40.30162475]
[1644334664334,1.2156478,111.42,111.36,13.4652]
[1644334664533,1.2156478,111.42,111.34,76.85816424]
[1644334664534,1.2156478,111.42,111.34,13.4684]
[1644334664934,1.2156478,111.42,111.34,26.10770081]
[1644334665134,1.2156478,111.43,111.34,26.10770081]
[1644334665332,1.2156478,111.42,111.35,38.16925917]
[1644334665533,1.2156478,111.43,111.35,102.66925917]
[1644334665735,1.2156478,111.43,111.37,13.4651]
[1644334665935,1.2156478,111.43,111.38,47.29809249]
[1644334666236,1.2156478,111.43,111.38,47.54809249]
[1644334666634,1.2156478,111.43,111.38,47.29809249]
[1644334667034,1.2156478,111.42,111.38,47.29809249]
[1644334668839,1.2156478,111.42,111.37,24.2451]
[1644334669037,1.2156478,111.42,111.35,13.4677]
[1644334669237,1.2156478,111.4,111.34,10.78]
[1644334669439,1.2156478,111.39,111.32,22.5603]
[1644334669638,1.2156478,111.39,111.31,12.63930081]
[1644334669837,1.2156478,111.39,111.32,38.24503536]
[1644334670437,6.20791901,111.4,111.32,38.24503536]
[1644334670438,1.2156478,111.37,111.32,38.24503536]
[1644334671838,1.2156478,111.37,111.31,24.2527]
[1644334672239,1.2156478,111.37,111.31,10.78]
[1644334672639,1.2156478,111.36,111.29,13.4753]
[1644334672839,1.2156478,111.36,111.29,56.54721913]
[1644334673041,1.2156478,111.36,111.29,43.07191913]
[1644334674240,7.2156478,111.37,111.29,43.07191913]
[1644334674439,1.2156478,111.36,111.29,43.07191913]
[1644334675442,1.2156478,111.36,111.29,58.40691994]
[1644334675643,6.0,111.37,111.29,69.43691994]
[1644334675942,1.2156478,111.38,111.29,91.84048337]
[1644334676142,1.2156478,111.39,111.29,160.69049815]
[1644334676346,1.2156478,111.4,111.29,160.69049815]
[1644334676547,2.89768088,111.4,111.29,160.69049815]
[1644334676744,1.2156478,111.4,111.29,160.69049815]
[1644334676943,1.2156478,111.39,111.29,106.97049815]
[1644334677144,1.2156478,111.39,111.29,100.97049815]
[1644334677344,1.2156478,111.39,111.29,85.84048337]
[1644334677546,1.2156478,111.39,111.29,91.84048337]
[1644334677949,1.2156478,111.39,111.29,145.56048337]
[1644334678147,1.2156478,111.41,111.29,168.87497825]
[1644334678355,0.0301252,111.4,111.29,168.87497825]
[1644334678549,1.2156478,111.42,111.29,168.87497825]
[1644334678752,0.0301252,111.41,111.29,168.87497825]
[1644334678948,1.2156478,111.41,111.29,168.87497825]
[1644334679153,1.2156478,111.42,111.29,168.87497825]
[1644334679350,1.2156478,111.42,111.29,168.62497825]
[1644334679748,1.2156478,111.41,111.29,168.62497825]
[1644334680049,1.2156478,111.42,111.31,53.72]
[1644334680248,1.2156478,111.42,111.35,36.5180988]
[1644334680650,1.2156478,111.42,111.35,36.7680988]
[1644334681357,9.36895201,111.53,111.35,36.7680988]
[1644334681358,0.0301252,111.45,111.36,67.188]
[1644334681552,0.0301252,111.47,111.36,77.676]
[1644334681756,2.51631301,111.52,111.38,53.72]
[1644334681951,0.0301252,111.52,111.39,15.266]
[1644334682151,0.0301252,111.52,111.42,13.4582]
[1644334682362,2.48618781,111.53,111.43,58.43780869]
[1644334682558,2.51631301,111.53,111.43,58.43780869]
[1644334682753,2.48618781,111.53,111.43,58.68780869]
[1644334683157,0.0301252,111.54,111.43,60.5471095]
[1644334683352,0.0301252,111.56,111.43,60.5471095]
[1644334683554,19.89130321,111.56,111.43,60.5471095]
[1644334683753,2.48346662,111.55,111.43,60.5471095]
[1644334683953,5.29606295,111.54,111.43,60.5471095]
[1644334684358,2.48087375,111.53,111.43,58.68780869]
[1644334684553,2.48087375,111.53,111.43,64.68780869]
[1644334684753,5.29606295,111.54,111.46,13.4565]
[1644334684959,13.4862252,111.56,111.47,40.8799293]
[1644334685159,2.47944978,111.55,111.47,40.8799293]
[1644334685960,23.47868959,111.54,111.47,40.8799293]
[1644334686764,23.47868959,111.54,111.47,54.3353293]
[1644334687157,13.4566,111.55,111.47,54.3353293]
[1644334687458,15.56435549,111.55,111.43,10.78]
[1644334687656,2.47634166,111.54,111.43,16.78]
[1644334687958,13.4601,111.52,111.43,24.2393]
[1644334688356,13.4601,111.52,111.44,37.14815049]
[1644334688555,7.22916624,111.51,111.43,24.2393]
[1644334688756,7.22916624,111.51,111.4,44.8681]
[1644334688956,20.72129144,111.51,111.41,13.462]
[1644334689163,4.58282902,111.5,111.36,10.78]
[1644334689357,2.47507353,111.49,111.36,10.78]
[1644334689560,17.95819992,111.48,111.37,43.65948953]
[1644334689759,2.47507353,111.47,111.37,43.65948953]
[1644334689957,13.4692,111.45,111.37,43.65948953]
[1644334690861,0.0301252,111.49,111.37,45.77373449]
[1644334691158,20.70799345,111.49,111.37,56.30373449]
[1644334691358,24.5747252,111.5,111.37,69.77133449]
[1644334691558,0.0301252,111.5,111.37,69.77133449]
[1644334691757,2.50480371,111.5,111.37,69.77133449]
[1644334691958,0.0301252,111.5,111.37,69.77133449]
[1644334692560,23.41832306,111.5,111.37,69.77133449]
[1644334692759,36.88062306,111.5,111.37,67.90708953]
[1644334692962,36.88062306,111.5,111.37,75.77133449]
[1644334693360,36.88062306,111.5,111.37,73.90708953]
[1644334693561,36.88062306,111.5,111.37,24.2476]
[1644334693562,2.47214005,111.49,111.37,24.2476]
[1644334693761,13.4679,111.46,111.37,13.4676]
[1644334693961,13.4679,111.46,111.35,17.9551]
[1644334694161,2.10775549,111.45,111.35,17.9551]
[1644334694562,1.7991683,111.44,111.35,17.9551]
[1644334694763,1.7991683,111.44,111.36,36.16451385]
[1644334695063,1.7991683,111.44,111.35,17.9551]
[1644334695762,13.4711,111.43,111.35,17.9551]
[1644334695961,20.03143336,111.42,111.35,17.9551]
[1644334696462,20.03143336,111.42,111.3,10.78]
[1644334696763,35.61108885,111.42,111.29,24.5732]
[1644334696961,35.61108885,111.42,111.27,103.2441]
[1644334697365,35.61108885,111.42,111.28,35.60843354]
[1644334697562,41.61108885,111.42,111.28,35.60843354]
[1644334697764,10.78,111.41,111.27,36.583]
[1644334697963,13.4812,111.37,111.25,10.78]
[1644334698168,13.4812,111.37,111.25,13.2911]
[1644334698567,13.4812,111.37,111.23,611.18205774]
[1644334698763,5.1559328,111.36,111.26,47.8385037]
[1644334698964,7.26368829,111.36,111.26,47.8385037]
[1644334699163,32.92021444,111.34,111.26,47.8385037]
[1644334701263,13.4827,111.34,111.26,47.8385037]
[1644334701464,44.9422,111.36,111.26,47.8385037]
[1644334701465,13.4803,111.36,111.26,47.8385037]
[1644334701664,23.2865,111.39,111.26,58.8685037]
[1644334701867,23.2865,111.39,111.26,72.3488037]
[1644334702265,21.55926855,111.38,111.26,72.3488037]
[1644334702669,21.55926855,111.38,111.26,74.21304853]
[1644334702967,21.55926855,111.38,111.26,89.78396196]
[1644334703666,21.55926855,111.38,111.26,87.91971713]
[1644334703866,27.55926855,111.38,111.26,87.91971713]
[1644334704068,41.03646855,111.38,111.26,87.91971713]
[1644334704267,41.03646855,111.38,111.26,101.69341713]
[1644334706670,41.03646855,111.38,111.26,101.44341713]
[1644334706872,41.03646855,111.38,111.26,85.8725037]
[1644334708295,41.03646855,111.38,111.26,86.1225037]
[1644334708595,6.0,111.38,111.26,139.8425037]
[1644334708800,6.0,111.38,111.26,147.70674853]
[1644334708996,23.2865,111.39,111.26,147.70674853]
[1644334709596,23.2092,111.4,111.26,178.40767674]
[1644334709797,24.1534,111.42,111.28,53.72]
[1644334709997,24.160825,111.43,111.32,13.4698]
[1644334710207,24.160825,111.43,111.33,58.38272678]
[1644334710599,24.160825,111.43,111.33,58.63272678]
[1644334711298,0.0301252,111.46,111.33,58.63272678]
[1644334711497,0.0301252,111.46,111.33,60.49697161]
[1644334711698,13.4705,111.44,111.36,13.469]
[1644334711897,77.3704252,111.47,111.36,13.469]
[1644334712296,20.80552212,111.46,111.37,39.34357922]
[1644334712700,34.27372212,111.46,111.37,39.34357922]
[1644334713604,13.4682,111.46,111.37,52.81147922]
[1644334713801,71.3704252,111.47,111.37,52.81147922]
[1644334713997,0.0301252,111.48,111.37,63.84147922]
[1644334714198,0.0301252,111.49,111.37,65.70572405]
[1644334714697,19.55641912,111.5,111.37,65.70572405]
[1644334715697,33.01941912,111.5,111.37,65.70572405]
[1644334716098,39.01941912,111.5,111.37,65.70572405]
[1644334716297,19.4931252,111.5,111.37,65.70572405]
[1644334716499,6.0301252,111.5,111.37,137.85772405]
[1644334716699,0.0301252,111.5,111.37,169.60840226]
[1644334716899,0.0301252,111.51,111.37,169.60840226]
[1644334717098,0.0301252,111.5,111.41,13.4572]
[1644334717298,0.0301252,111.51,111.42,54.89996401]
[1644334717499,0.0301252,111.53,111.42,54.89996401]
[1644334717804,0.0301252,111.54,111.43,1.86424483]
[1644334717999,6.0,111.54,111.44,64.5]
[1644334718298,6.0,111.54,111.45,13.4566]
[1644334718505,2.45952903,111.59,111.47,0.44]
[1644334718702,2.45952903,111.61,111.49,0.44]
[1644334718904,2.45952903,111.63,111.5,10.78]
[1644334719102,2.45952903,111.64,111.5,16.78]
[1644334719301,2.45952903,111.66,111.51,148.2452]
[1644334719505,2.45952903,111.66,111.52,10.78]
[1644334719800,2.45952903,111.66,111.52,18.89424483]
[1644334720003,2.45952903,111.66,111.53,1.86424483]
[1644334720200,2.45952903,111.66,111.54,10.78]
[1644334720403,2.45952903,111.66,111.55,38.22078716]
[1644334720601,2.45952903,111.66,111.56,10.78]
[1644334720800,2.45952903,111.64,111.48,134.8]
[1644334721000,4.92338592,111.65,111.53,10.78]
[1644334721201,4.48,111.64,111.53,0.25]
[1644334721401,10.17893032,111.66,111.53,0.25]
[1644334721602,4.48,111.66,111.47,21.34814483]
[1644334721802,10.89493664,111.65,111.54,39.36573972]
[1644334722401,26.44919213,111.65,111.51,24.229]
[1644334722602,4.481,111.64,111.5,10.78]
[1644334722804,4.481,111.64,111.46,36.4585]
[1644334723005,6.94052903,111.64,111.47,10.78]
[1644334723403,38.55115472,111.63,111.49,13.4516]
[1644334723606,38.55115472,111.63,111.5,46.38997989]
[1644334723804,13.4486,111.63,111.5,48.25422472]
[1644334724011,24.1406,111.66,111.5,48.25422472]
[1644334724207,24.1406,111.66,111.5,48.50422472]
[1644334724405,24.1406,111.66,111.5,54.50422472]
[1644334724606,24.1406,111.66,111.5,48.50422472]
[1644334724807,53.85286867,111.66,111.5,48.50422472]
[1644334725006,53.85286867,111.66,111.5,54.50422472]
[1644334725408,53.85286867,111.66,111.52,36.27277203]
[1644334725409,58.33386867,111.66,111.52,36.27277203]
[1644334725612,13.4464,111.65,111.55,13.4444]
[1644334725808,62.87853032,111.69,111.55,13.6944]
[1644334726010,57.1796,111.69,111.55,24.4744]
[1644334726208,46.3996,111.69,111.55,26.33864483]
[1644334726410,46.3996,111.69,111.55,24.2244]
[1644334726614,26.87567884,111.68,111.56,47.76816494]
[1644334726811,13.444,111.67,111.56,47.76816494]
[1644334727012,9.12181252,111.66,111.56,47.76816494]
[1644334727614,15.12181252,111.66,111.56,47.76816494]
[1644334728813,13.4462,111.65,111.56,47.76816494]
[1644334729013,26.87567884,111.64,111.56,47.76816494]
[1644334730212,40.32337884,111.64,111.53,24.2266]
[1644334730412,40.32337884,111.64,111.53,10.78]
[1644334730612,42.43113433,111.64,111.51,13.4487]
[1644334731214,42.43113433,111.64,111.52,35.17564966]
[1644334731414,48.43113433,111.64,111.52,35.17564966]
[1644334731614,46.32337884,111.64,111.52,35.17564966]
[1644334733615,46.35290168,111.64,111.52,35.17564966]
[1644334736218,46.35290168,111.64,111.52,48.62314966]
[1644334739221,46.35290168,111.64,111.52,35.17564966]
[1644334740121,48.81243071,111.64,111.52,35.17564966]
[1644334740321,48.81243071,111.64,111.52,59.40304966]
[1644334740523,21.93675187,111.64,111.52,59.40304966]
[1644334740722,19.47722284,111.64,111.53,1.86923612]
[1644334740923,6.0,111.64,111.54,10.78]
[1644334741125,2.48905187,111.65,111.54,10.78]
[1644334741422,0.02952284,111.65,111.54,11.03]
[1644334741623,0.02952284,111.65,111.55,36.33322359]
[1644334741824,1.32304548,111.65,111.55,36.58322359]
[1644334742023,0.02952284,111.65,111.55,36.58322359]
[1644334742525,0.02952284,111.65,111.55,62.67645971]
[1644334744130,0.02952284,111.65,111.55,116.39645971]
[1644334744427,0.02952284,111.65,111.55,147.83441569]
[1644334744629,2.48905187,111.68,111.56,4.48]
[1644334744828,0.02952284,111.66,111.57,24.2219]
[1644334745129,26.26026226,111.67,111.58,39.94552513]
[1644334745328,26.26026226,111.67,111.58,40.19552513]
[1644334745528,9.7372291,111.65,111.58,40.19552513]
[1644334745728,9.7372291,111.65,111.58,39.94552513]
[1644334746129,2.45952903,111.65,111.58,39.94552513]
[1644334746335,2.45952903,111.65,111.57,10.78]
[1644334746535,2.45952903,111.65,111.56,10.78]
[1644334746739,2.45952903,111.65,111.52,35.5541]
[1644334746931,2.45952903,111.65,111.52,10.78]
[1644334747133,2.45952903,111.61,111.52,10.78]
[1644334747329,2.45952903,111.61,111.53,13.4468]
[1644334747529,2.45952903,111.6,111.53,49.31826951]
[1644334747731,2.45952903,111.61,111.53,49.31826951]
[1644334747934,4.94383411,111.62,111.54,1.86923612]
[1644334748130,0.02952284,111.63,111.55,10.78]
[1644334748335,2.49189764,111.67,111.57,121.0]
[1644334748531,10.7327519,111.74,111.58,26.44]
[1644334748532,0.00957988,111.65,111.58,26.44]
[1644334748730,6.2527519,111.77,111.6,0.44]
[1644334748935,6.2527519,111.79,111.64,44.7695]
[1644334749134,2.49366118,111.76,111.65,131.78]
[1644334749333,0.856209,111.82,111.65,132.03]
[1644334749334,3.34987018,111.82,111.65,132.03]
[1644334749536,15.92106118,111.81,111.66,19.77413612]
[1644334749733,2.49366118,111.8,111.67,11.22]
[1644334749938,2.49366118,111.81,111.69,93.65759544]
[1644334750135,0.856209,111.82,111.69,93.65759544]
[1644334750136,0.856209,111.82,111.7,10.78]
[1644334750336,44.27486753,111.85,111.71,47.68688783]
[1644334750536,44.27486753,111.85,111.73,47.09322774]
[1644334750733,44.7388,111.88,111.76,40.29714637]
[1644334750935,87.19685549,111.9,111.76,40.29714637]
[1644334751134,2.47137058,111.87,111.77,10.78]
[1644334751336,87.19685549,111.9,111.77,10.78]
[1644334751337,2.47137058,111.89,111.77,10.78]
[1644334751548,2.47137058,111.89,111.77,11.03]
[1644334751736,2.47137058,111.89,111.78,43.23936848]
[1644334751937,2.47137058,111.89,111.79,10.78]
[1644334752135,44.7191,111.94,111.79,10.78]
[1644334752337,2.47312809,111.93,111.79,11.03]
[1644334752537,2.47312809,111.93,111.8,1.86481099]
[1644334752735,2.47312809,111.95,111.81,10.78]
[1644334752935,2.47312809,111.96,111.81,10.78]
[1644334753135,38.98822439,111.94,111.82,36.15395748]
[1644334753336,38.98822439,111.94,111.83,10.78]
[1644334753537,44.98822439,111.94,111.83,10.78]
[1644334753738,58.40092439,111.94,111.83,10.78]
[1644334753938,6.57575549,111.93,111.75,48.3409]
[1644334754140,2.10775549,111.93,111.76,10.78]
[1644334754337,6.57775549,111.93,111.76,10.78]
[1644334754538,45.97580216,111.92,111.77,45.43298054]
[1644334754738,13.417,111.9,111.79,13.4146]
[1644334754940,42.62939128,111.89,111.8,41.02508936]
[1644334755839,56.04809128,111.89,111.8,41.02508936]
[1644334756438,42.62939128,111.89,111.8,41.02508936]
[1644334756960,44.7232,111.93,111.8,41.02508936]
[1644334757142,24.9729,111.95,111.8,53.91548315]
[1644334757339,157.8117,111.96,111.8,53.91548315]
[1644334757539,44.7117,111.96,111.8,53.91548315]
[1644334757942,47.98382671,111.95,111.8,51.80508936]
[1644334758147,40.62136673,111.92,111.8,51.80508936]
[1644334758539,2.10775549,111.91,111.8,51.80508936]
[1644334758742,45.39621802,111.9,111.8,51.80508936]
[1644334759343,57.60385549,111.94,111.8,51.80508936]
[1644334759840,13.4171,111.9,111.8,51.80508936]
[1644334760343,37.94817013,111.89,111.8,51.80508936]
[1644334763144,48.49268553,111.87,111.8,41.02508936]
[1644334764146,61.91358553,111.87,111.8,41.02508936]
[1644334764346,67.91358553,111.87,111.8,41.02508936]
[1644334765046,19.4209,111.87,111.8,41.02508936]
[1644334765247,6.0,111.87,111.8,41.02508936]
[1644334765848,13.4178,111.89,111.8,41.02508936]
[1644334766047,46.53315442,111.88,111.8,41.02508936]
[1644334767150,59.95245442,111.88,111.8,41.02508936]
[1644334768046,65.95245442,111.88,111.8,41.02508936]
[1644334768247,6.0,111.88,111.8,41.02508936]
[1644334768649,6.0,111.88,111.8,42.88548315]
[1644334768849,13.44623479,111.9,111.8,41.02508936]
[1644334769050,13.4163,111.9,111.8,41.02508936]
[1644334769251,58.18164714,111.9,111.8,41.02508936]
[1644334769753,19.4163,111.9,111.8,41.02508936]
[1644334770651,21.52405549,111.9,111.8,41.02508936]
[1644334770852,39.82830233,111.89,111.8,41.02508936]
[1644334771050,13.4199,111.87,111.8,41.02508936]
[1644334771251,36.66888717,111.86,111.8,41.02508936]
[1644334771452,36.66888717,111.86,111.75,83.0046]
[1644334771651,0.00951439,111.79,111.76,0.25]
[1644334771850,0.00951439,111.79,111.76,10.78]
[1644334772255,0.00951439,111.79,111.76,11.03]
[1644334772653,0.00951439,111.79,111.77,46.79519697]
[1644334772853,0.00951439,111.79,111.77,57.57519697]
[1644334773052,0.00951439,111.79,111.77,57.82519697]
[1644334773454,0.00951439,111.79,111.77,57.57519697]
[1644334774555,0.00951439,111.79,111.77,59.43561463]
[1644334774760,0.00951439,111.79,111.77,59.68561463]
[1644334775354,0.00951439,111.79,111.77,70.99129697]
[1644334775757,0.00951439,111.79,111.77,57.57519697]
[1644334776156,0.00951439,111.79,111.77,46.79519697]
[1644334776560,0.00951439,111.79,111.78,10.78]
[1644334778061,0.00951439,111.79,111.77,46.79519697]
[1644334778266,6.06439994,111.78,111.77,46.79519697]
[1644334778461,0.00951439,111.79,111.72,10.78]
[1644334779480,0.00951439,111.79,111.73,40.96935105]
[1644334784182,0.00951439,111.79,111.7,13.4248]
[1644334784384,0.00951439,111.79,111.67,131.3155]
[1644334785185,0.00951439,111.79,111.68,36.83295875]
[1644334785788,0.00951439,111.79,111.68,38.94337641]
[1644334785789,13.43861439,111.79,111.68,38.94337641]
[1644334785983,0.00951439,111.79,111.68,64.68482327]
[1644334786382,0.00951439,111.79,111.68,118.40482327]
[1644334786584,0.00951439,111.79,111.68,73.03635117]
[1644334786782,0.00951439,111.79,111.68,99.76674373]
[1644334786987,0.00951439,111.79,111.68,105.76674373]
[1644334787184,0.00951439,111.79,111.7,84.60223834]
[1644334787384,0.00951439,111.79,111.72,47.57407321]
[1644334787588,0.00951439,111.79,111.73,10.78]
[1644334788386,0.00951439,111.79,111.73,11.03]
[1644334788585,0.00951439,111.79,111.74,43.85230821]
[1644334788786,0.00951439,111.79,111.74,54.63230821]
[1644334789385,0.00951439,111.79,111.74,54.88230821]
[1644334789584,0.00951439,111.79,111.74,54.63230821]
[1644334790185,0.00951439,111.79,111.74,43.85230821]
[1644334792688,0.00951439,111.79,111.74,44.10230821]
[1644334792892,0.00951439,111.79,111.74,54.88230821]
[1644334793089,0.00951439,111.79,111.74,54.63230821]
[1644334793291,0.00951439,111.79,111.74,54.88230821]
[1644334793790,0.00951439,111.79,111.74,68.05340821]
[1644334793990,0.00951439,111.79,111.74,54.63230821]
[1644334794190,0.00951439,111.79,111.74,43.85230821]
[1644334794591,0.00951439,111.79,111.74,45.71272587]
[1644334794991,0.00951439,111.79,111.74,43.85230821]
[1644334800898,0.00951439,111.79,111.74,57.27390821]
[1644334801697,0.00951439,111.79,111.74,43.85230821]
[1644334802499,0.00951439,111.79,111.72,10.78]
[1644334802699,2.11726988,111.79,111.7,10.78]
[1644334802900,15.54506988,111.79,111.67,131.6498]
[1644334803102,19.46724918,111.79,111.67,131.6498]
[1644334803302,19.46724918,111.79,111.67,133.51021766]
[1644334803700,36.47370357,111.78,111.68,57.61258502]
[1644334803901,6.03944918,111.79,111.68,57.61258502]
[1644334804101,6.03944918,111.79,111.68,70.50300268]
[1644334804306,6.03944918,111.79,111.69,1.86041766]
[1644334804702,0.03944918,111.79,111.69,2.11041766]
[1644334804903,48.111,111.84,111.71,121.0]
[1644334805102,0.03027852,111.8,111.72,10.78]
[1644334805301,13.45257852,111.84,111.72,12.89041766]
[1644334805501,0.03027852,111.83,111.73,1.86041766]
[1644334805721,13.4223,111.84,111.74,10.78]
[1644334805722,13.45257852,111.84,111.74,10.78]
[1644334805904,47.78796172,111.83,111.74,72.087292]
[1644334806304,53.78796172,111.83,111.74,72.087292]
[1644334806505,6.0,111.83,111.74,72.087292]
[1644334806704,13.4223,111.84,111.74,72.087292]
[1644334806904,19.4223,111.84,111.74,72.087292]
[1644334808505,36.32460299,111.83,111.74,72.087292]
[1644334808709,13.4249,111.81,111.74,47.885792]
[1644334809906,13.4234,111.83,111.74,47.885792]
[1644334810506,58.3841953,111.83,111.74,47.885792]
[1644334811105,60.49195079,111.83,111.74,47.885792]
[1644334812807,60.49195079,111.83,111.7,13.4269]
[1644334813006,0.03027852,111.82,111.69,35.2758]
[1644334813226,0.03027852,111.82,111.69,10.78]
[1644334813227,13.4294,111.79,111.69,10.78]
[1644334813707,15.53715549,111.79,111.69,10.78]
[1644334813911,35.0724959,111.78,111.7,35.04217582]
[1644334814108,13.4301,111.77,111.7,35.04217582]
[1644334815013,13.4301,111.77,111.65,126.5915]
[1644334815014,2.10775549,111.76,111.64,10.78]
[1644334815208,13.4357,111.73,111.64,10.78]
[1644334816008,19.4357,111.73,111.65,34.70772505]
[1644334816807,54.27185907,111.73,111.65,34.70772505]
[1644334817009,54.27185907,111.73,111.63,10.78]
[1644334817210,56.37961456,111.73,111.6,10.78]
[1644334817411,54.27185907,111.73,111.59,47.5714]
[1644334817611,54.27185907,111.73,111.6,10.78]
[1644334817810,56.37961456,111.73,111.6,10.78]
[1644334818011,56.37961456,111.73,111.61,37.4923622]
[1644334818211,67.15961456,111.73,111.61,37.4923622]
[1644334819515,65.05185907,111.73,111.61,37.4923622]
[1644334821115,48.38947734,111.71,111.61,37.4923622]
[1644334821315,13.4406,111.69,111.61,37.4923622]
[1644334822816,48.67099345,111.69,111.61,37.4923622]
[1644334823916,54.67099345,111.69,111.61,37.4923622]
[1644334824717,2.10775549,111.68,111.61,37.4923622]
[1644334824919,13.443,111.66,111.61,37.4923622]
[1644334826622,46.05124528,111.69,111.61,37.4923622]
[1644334826828,1.24124528,111.7,111.61,37.4923622]
[1644334827026,1.24124528,111.71,111.61,48.2723622]
[1644334827224,1.24124528,111.72,111.61,48.2723622]
[1644334827623,42.28325014,111.72,111.61,48.2723622]
[1644334828024,39.01474191,111.7,111.61,48.2723622]
[1644334828242,39.01474191,111.7,111.61,61.7101622]
[1644334828642,45.01474191,111.7,111.61,61.7101622]
[1644334829645,13.439,111.69,111.61,61.7101622]
[1644334829845,6.0,111.7,111.61,61.7101622]
[1644334830044,1.24124528,111.71,111.61,61.7101622]
[1644334830347,7.24124528,111.71,111.61,61.7101622]
[1644334830544,20.67854528,111.71,111.61,37.4923622]
[1644334830748,44.8082,111.69,111.61,37.4923622]
[1644334830948,46.04944528,111.69,111.61,37.4923622]
[1644334831147,1.24124528,111.69,111.61,37.4923622]
[1644334831346,1.24124528,111.7,111.61,37.4923622]
[1644334831548,1.24124528,111.69,111.61,37.4923622]
[1644334831848,13.4425,111.68,111.61,37.4923622]
[1644334832053,35.18627064,111.67,111.61,37.4923622]
[1644334832450,6.0,111.68,111.61,37.4923622]
[1644334833349,45.2675079,111.68,111.61,37.4923622]
[1644334833750,58.7084079,111.68,111.61,37.4923622]
[1644334834951,19.4409,111.68,111.61,37.4923622]
[1644334836857,6.0,111.68,111.61,37.4923622]
[1644334837057,1.24124528,111.7,111.61,50.9303622]
[1644334837255,1.24124528,111.71,111.62,10.78]
[1644334837454,1.24124528,111.73,111.62,10.78]
[1644334837654,1.24124528,111.74,111.62,11.03]
[1644334837857,1.24124528,111.74,111.64,42.15436105]
[1644334838054,1.24124528,111.74,111.64,52.93436105]
[1644334838254,1.24124528,111.74,111.64,53.18436105]
[1644334838655,1.24124528,111.74,111.64,52.93436105]
[1644334838954,14.67284528,111.75,111.64,66.61746105]
[1644334839354,1.24124528,111.74,111.64,66.61746105]
[1644334839558,1.24124528,111.74,111.65,1.86597419]
[1644334839756,1.24124528,111.76,111.68,13.4278]
[1644334839957,1.24124528,111.77,111.68,24.2078]
[1644334840155,1.24124528,111.76,111.68,24.4578]